bitfinex-derivatives/quotes_BNBF0:USTF0_20250521
["timestamp","ask_amount","ask_price","bid_price","bid_amount"]
[1747815107801,0.26564581,655.89,654.37,0.58441321]
[1747815109002,0.26564581,655.89,654.38,0.58441321]
[1747815109203,1.435,655.9,654.38,0.58441321]
[1747815110303,1.435,655.9,654.39,0.58441321]
[1747815110506,0.26564379,655.89,654.39,0.58441321]
[1747815111506,0.26564379,655.89,654.4,0.58441321]
[1747815112206,1.435,655.9,654.4,0.58441321]
[1747815113201,1.435,655.9,654.41,0.58441321]
[1747815113406,0.26564176,655.89,654.41,0.58441321]
[1747815114208,0.26564176,655.89,654.42,0.58441321]
[1747815116111,0.26564176,655.89,654.43,0.58441321]
[1747815117512,0.26564176,655.89,654.3,0.58441321]
[1747815118313,1.435,655.9,654.3,0.58441321]
[1747815118517,3.68378074,656.44,654.3,0.58441321]
[1747815119115,3.68378074,656.44,654.31,1.19079436]
[1747815119415,0.26558499,656.43,654.31,1.19079436]
[1747815119616,3.68378074,656.34,654.32,1.19079436]
[1747815120817,1.523,656.33,654.32,1.19079436]
[1747815121012,1.523,656.33,654.33,0.58441321]
[1747815121714,0.2655931,656.32,654.33,0.58441321]
[1747815122621,0.2655931,656.32,654.34,0.58441321]
[1747815123821,0.2655931,656.32,654.35,0.58441321]
[1747815124122,1.523,656.33,654.35,0.58441321]
[1747815124524,0.26559107,656.31,654.35,0.58441321]
[1747815125419,0.26559107,656.31,654.36,0.58441321]
[1747815126428,0.26559107,656.31,654.3,0.58441321]
[1747815129429,0.26559107,656.31,654.29,1.267]
[1747815133031,0.26559107,656.31,654.3,0.58680904]
[1747815134133,3.68378074,655.67,654.31,0.58680904]
[1747815135233,3.68378074,655.67,654.3,0.58680904]
[1747815135837,0.26571376,655.66,654.3,0.58680904]
[1747815136236,3.68378074,655.67,654.3,0.58680904]
[1747815137335,0.26571376,655.66,654.3,0.58680904]
[1747815139136,3.68378074,655.67,654.3,0.58680904]
[1747815139337,3.68378074,655.67,654.31,0.58680904]
[1747815140136,0.26570666,655.66,654.31,0.58680904]
[1747815140433,0.26570666,655.66,654.32,0.58680904]
[1747815140836,0.26570666,655.66,654.33,1.133]
[1747815142037,0.26570666,655.66,654.34,0.58680904]
[1747815142837,0.26570666,655.66,654.35,0.58680904]
[1747815144134,0.26570666,655.66,654.36,0.58680904]
[1747815145136,0.26570666,655.66,654.37,0.58680904]
[1747815145344,3.68378074,655.67,654.37,0.58680904]
[1747815146443,0.26570666,655.66,654.37,0.58680904]
[1747815146743,0.26570666,655.66,654.38,1.752]
[1747815147043,3.68378074,655.42,654.38,2.33880904]
[1747815148744,3.68378074,655.42,654.39,0.58680904]
[1747815150044,3.68378074,655.42,654.4,0.58680904]
[1747815151145,3.68378074,655.42,654.41,0.58680904]
[1747815153045,3.68378074,655.42,654.42,0.58680904]
[1747815154448,3.68378074,655.42,654.38,1.752]
[1747815156547,3.68378074,655.42,654.39,0.58404078]
[1747815158249,3.68378074,655.42,654.4,0.58404078]
[1747815159554,3.68378074,655.42,654.41,0.58404078]
[1747815160756,3.68378074,655.42,654.42,0.58404078]
[1747815162356,0.26571478,655.53,654.43,0.58404078]
[1747815163157,5.15729304,655.64,654.43,0.58404078]
[1747815163457,5.15729304,655.64,654.38,1.752]
[1747815164458,0.26569652,655.63,654.38,1.752]
[1747815164658,0.26569652,655.63,654.39,0.58325944]
[1747815165558,0.26569652,655.63,654.4,0.58325944]
[1747815166159,5.15729304,655.64,654.4,0.58325944]
[1747815167057,5.15729304,655.64,654.41,0.58325944]
[1747815167458,0.26569449,655.63,654.41,0.58325944]
[1747815168858,0.26569449,655.63,654.42,0.58325944]
[1747815169261,5.15729304,655.64,654.42,0.58325944]
[1747815170461,0.26569246,655.63,654.42,0.58325944]
[1747815170863,0.26569246,655.63,654.39,0.58325944]
[1747815171964,0.26569246,655.63,654.4,0.58325944]
[1747815172163,5.15729304,655.64,654.4,0.58325944]
[1747815173068,5.15729304,655.64,654.41,0.58325944]
[1747815173468,0.26569449,655.63,654.41,0.58325944]
[1747815174467,0.26569449,655.63,654.42,0.58325944]
[1747815175167,5.15729304,655.64,654.42,0.58325944]
[1747815176268,3.68378074,655.58,654.43,0.58325944]
[1747815177969,3.68378074,655.58,654.44,0.58325944]
[1747815179275,3.68378074,655.58,654.39,0.58325944]
[1747815179468,0.2657026,655.57,654.39,0.58325944]
[1747815181072,0.2657026,655.57,654.38,1.752]
[1747815181274,3.68378074,655.58,654.38,1.752]
[1747815182474,0.26570869,655.57,654.38,1.752]
[1747815185373,0.26570869,655.57,654.39,0.58405575]
[1747815186376,0.26570869,655.57,654.38,1.752]
[1747815186578,0.26570869,655.57,654.4,0.58405729]
[1747815187176,3.68378074,655.58,654.4,0.58405729]
[1747815187778,3.68378074,655.58,654.4,1.81905729]
[1747815188473,0.26570869,655.57,654.41,0.58405729]
[1747815189679,0.26570869,655.57,654.4,1.235]
[1747815190180,3.68378074,655.58,654.4,1.235]
[1747815191482,0.26570869,655.57,654.4,1.235]
[1747815193182,3.68378074,655.61,654.4,1.235]
[1747815193483,0.26570565,655.56,654.4,1.235]
[1747815196185,3.68378074,655.61,654.4,1.235]
[1747815196485,0.26570565,655.55,654.4,1.235]
[1747815197786,1.525,655.54,654.4,1.235]
[1747815199486,0.26571275,655.53,654.4,1.235]
[1747815207694,0.26571275,655.53,654.41,0.58066599]
[1747815208096,0.26571275,655.53,654.41,1.84966599]
[1747815208296,1.525,655.54,654.41,1.84966599]
[1747815209191,1.525,655.54,654.41,1.269]
[1747815209397,0.2657097,655.53,654.41,1.269]
[1747815211299,1.525,655.54,654.41,1.269]
[1747815211801,0.26572391,655.53,654.41,1.269]
[1747815214205,1.525,655.54,654.41,1.269]
[1747815214805,0.26572391,655.53,654.41,1.269]
[1747815217204,1.525,655.54,654.41,1.269]
[1747815217804,0.26572391,655.53,654.41,1.269]
[1747815220007,0.26572391,655.53,654.41,2.863]
[1747815220404,3.68378074,655.31,654.41,2.863]
[1747815225210,1.526,655.3,654.41,2.863]
[1747815244037,1.526,655.3,654.42,0.57454412]
[1747815245136,1.526,655.3,654.43,0.57454412]
[1747815246335,3.68378074,655.51,654.43,0.57454412]
[1747815247637,3.68378074,655.51,654.43,2.20754412]
[1747815247837,3.68378074,655.72,654.44,0.57454412]
[1747815248439,0.26566001,655.71,654.44,0.57454412]
[1747815249143,0.26566001,655.71,654.45,0.57454412]
[1747815249333,1.317,655.7,654.45,0.57454412]
[1747815250437,1.317,655.7,654.46,0.57454412]
[1747815252241,1.317,655.7,654.47,0.57454412]
[1747815253740,1.317,655.7,654.48,0.57454412]
[1747815254441,0.26564784,655.69,654.48,0.57454412]
[1747815255243,0.26564784,655.69,654.43,1.633]
[1747815255244,0.26564784,655.69,654.49,0.57454412]
[1747815256245,1.317,655.7,654.49,0.57454412]
[1747815256843,1.317,655.7,654.5,2.42954412]
[1747815258243,1.317,655.7,654.51,0.57454412]
[1747815260045,1.317,655.7,654.5,1.855]
[1747815269255,0.26563466,655.74,654.5,1.855]
[1747815271254,3.68378074,655.79,654.5,1.855]
[1747815272554,0.26567522,655.78,654.5,1.855]
[1747815272849,1.78967522,655.78,654.5,1.855]
[1747815274254,1.524,655.78,654.5,1.855]
[1747815274854,1.524,655.78,654.43,1.633]
[1747815275555,0.26568333,655.77,654.43,1.633]
[1747815276554,0.26568333,655.77,654.43,3.479]
[1747815277256,1.524,655.78,654.43,3.479]
[1747815278551,0.26568333,655.77,654.43,3.479]
[1747815280258,1.524,655.78,654.43,3.479]
[1747815281461,0.26566914,655.77,654.43,3.479]
[1747815283264,3.68378074,655.71,654.43,3.479]
[1747815284156,0.26567623,655.7,654.43,3.479]
[1747815286264,3.68378074,655.71,654.43,3.479]
[1747815286459,0.26567623,655.69,654.43,3.479]
[1747815289268,3.68378074,655.71,654.43,3.479]
[1747815289460,0.26567623,655.68,654.43,3.479]
[1747815292273,3.68378074,655.71,654.43,3.479]
[1747815293474,0.26567623,655.7,654.43,3.479]
[1747815294068,0.26567623,655.7,654.44,0.56861376]
[1747815295275,3.68378074,655.71,654.44,0.56861376]
[1747815295573,3.68378074,655.71,654.43,1.846]
[1747815296375,0.26567421,655.7,654.43,1.846]
[1747815297873,0.26567421,655.7,654.43,3.168]
[1747815298273,1.524,655.78,654.43,3.168]
[1747815298777,3.68378074,655.89,654.43,3.168]
[1747815299175,0.26565798,655.88,654.43,3.168]
[1747815301477,3.68378074,655.89,654.43,3.168]
[1747815301675,1.215,655.87,654.43,3.168]
[1747815302473,0.26568232,655.86,654.43,3.168]
[1747815304280,1.215,655.87,654.43,3.168]
[1747815304777,0.26568435,655.86,654.43,3.168]
[1747815305173,5.15729304,655.8,654.43,3.168]
[1747815307574,0.26569145,655.79,654.43,3.168]
[1747815310279,5.15729304,655.8,654.43,3.168]
[1747815310981,3.68378074,655.69,654.43,3.168]
[1747815311477,0.26572492,655.68,654.43,3.168]
[1747815313283,3.68378074,655.69,654.43,3.168]
[1747815313784,0.26572289,655.68,654.43,3.168]
[1747815316283,3.68378074,655.69,654.43,3.168]
[1747815316783,0.26572289,655.68,654.43,3.168]
[1747815319289,0.26572289,655.68,653.83,0.56983871]
[1747815320488,0.26572289,655.68,653.13,0.26592595]
[1747815320685,0.26572289,655.68,653.14,0.61183578]
[1747815320887,0.26572289,655.68,653.15,1.80879332]
[1747815321186,0.26572289,655.68,653.16,0.61183578]
[1747815321386,0.26572289,655.68,653.17,1.19695754]
[1747815321588,0.26572289,655.68,653.18,1.17545174]
[1747815321787,0.26572289,655.68,653.19,0.61183578]
[1747815321988,0.26572289,655.68,653.2,0.61183578]
[1747815322190,0.26572289,655.68,653.21,1.80879332]
[1747815322390,3.68378074,655.69,653.22,0.61183578]
[1747815322589,0.26598591,655.67,653.23,0.61056132]
[1747815322790,0.26598591,655.67,653.24,1.19695754]
[1747815322985,0.26598591,655.67,653.25,1.19695754]
[1747815323287,0.26598591,655.67,653.26,1.19695754]
[1747815323690,0.26598591,655.67,653.27,1.19695754]
[1747815323891,0.26598591,655.67,653.28,0.60998882]
[1747815324092,0.26598591,655.67,653.29,0.6100196]
[1747815324291,0.26598591,655.67,653.3,0.56361596]
[1747815324792,0.97116872,655.64,653.31,1.19695754]
[1747815325191,0.97116872,655.64,653.32,1.19695754]
[1747815325692,0.26596761,655.63,653.3,0.56361596]
[1747815325894,0.26596761,655.63,653.33,1.19236021]
[1747815326095,3.68378074,655.24,653.33,1.75597617]
[1747815326394,3.68378074,655.24,653.34,1.19236021]
[1747815327393,3.68378074,655.24,653.35,0.56361596]
[1747815327994,1.526,655.23,653.35,0.56361596]
[1747815328995,1.526,655.23,653.25,0.56983871]
[1747815328996,1.526,655.23,653.36,0.56361596]
[1747815329595,0.26602861,655.22,653.36,0.56361596]
[1747815330089,0.26602861,655.22,653.37,0.56361596]
[1747815332194,0.26602861,655.22,653.38,0.56361596]
[1747815333296,0.26602861,655.22,653.39,0.56361596]
[1747815334296,1.526,655.23,653.39,0.56361596]
[1747815334595,0.26601539,655.21,653.39,0.56361596]
[1747815334792,0.26601539,655.21,653.4,0.56361596]
[1747815335800,0.26601539,655.21,653.41,0.56361596]
[1747815337205,1.526,655.23,653.41,0.56361596]
[1747815337807,1.526,655.23,653.42,0.56361596]
[1747815338702,0.26601234,655.22,653.43,0.56361596]
[1747815340308,1.526,655.23,653.43,1.83161596]
[1747815340507,1.526,655.23,653.44,0.56361596]
[1747815341008,1.526,655.23,653.45,1.159]
[1747815341508,0.26600929,655.22,653.45,1.159]
[1747815341701,0.26600929,655.22,653.46,0.56361596]
[1747815343109,0.26600929,655.22,653.47,0.56361596]
[1747815343311,5.15729304,655.66,653.47,0.56361596]
[1747815344310,5.15729304,655.66,653.48,0.56361596]
[1747815344609,1.75594728,655.65,653.48,0.56361596]
[1747815346006,1.75594728,655.65,653.49,0.56361596]
[1747815346311,1.49,655.65,653.49,0.56361596]
[1747815347412,1.49,655.65,653.5,0.56361596]
[1747815347712,0.26594627,655.64,653.5,0.56361596]
[1747815349013,0.26594627,655.64,653.51,0.56361596]
[1747815349313,1.49,655.65,653.51,0.56361596]
[1747815350014,1.49,655.65,653.52,0.56361596]
[1747815350213,0.26591579,655.64,653.52,0.56361596]
[1747815350809,0.26591579,655.64,653.53,1.18809838]
[1747815351011,0.26591579,655.64,653.52,0.56361596]
[1747815351012,0.26591579,655.64,653.54,1.18809838]
[1747815351408,0.26591579,655.64,653.53,1.18809838]
[1747815351709,0.26591579,655.64,653.55,0.56361596]
[1747815352517,0.26591579,655.64,653.56,0.56361596]
[1747815353711,0.26591579,655.64,653.57,1.1890759]
[1747815354018,0.26591579,655.64,653.58,1.1890759]
[1747815354218,0.26591579,655.64,653.58,1.75269186]
[1747815354413,0.26591579,655.64,653.59,1.1890759]
[1747815355319,1.49,655.65,653.59,1.1890759]
[1747815355514,0.26588531,655.63,653.6,0.56361596]
[1747815356015,0.26588531,655.63,653.61,1.1890759]
[1747815356720,0.26588531,655.63,653.62,0.56361596]
[1747815357316,0.26588531,655.63,653.63,1.1890759]
[1747815357823,0.26588531,655.63,653.64,0.56361596]
[1747815358422,1.49,655.65,653.64,0.56361596]
[1747815359022,1.49,655.65,653.65,0.56361596]
[1747815359525,0.26588125,655.64,653.65,0.56361596]
[1747815360225,0.26588125,655.64,653.66,0.56361596]
[1747815361226,3.68378074,656.06,653.66,0.56361596]
[1747815361825,0.2658589,656.05,653.67,0.56361596]
[1747815363230,1.243,656.04,653.67,0.56361596]
[1747815363730,1.243,656.04,653.45,1.159]
[1747815364833,0.26594932,656.03,653.45,1.159]
[1747815367334,1.243,656.04,653.45,1.159]
[1747815367835,0.26594932,656.03,653.45,1.159]
[1747815368737,3.68378074,655.42,653.46,1.145]
[1747815370743,0.26601132,655.41,653.46,1.145]
[1747815373244,3.68378074,655.42,653.46,1.145]
[1747815373939,0.26598286,655.41,653.46,1.145]
[1747815374447,3.68378074,655.26,653.46,1.145]
[1747815376645,0.26599912,655.25,653.46,1.145]
[1747815379346,3.68378074,655.26,653.46,1.145]
[1747815380550,0.26599912,655.25,653.46,1.145]
[1747815380946,3.68378074,655.26,653.46,1.145]
[1747815381146,3.68378074,655.26,653.47,1.568]
[1747815381550,1.526,655.25,653.47,1.568]
[1747815384654,5.15729304,654.75,653.47,1.568]
[1747815385154,0.26606623,654.74,653.47,1.568]
[1747815388159,0.26606623,654.74,653.48,1.588]
[1747815388355,5.15729304,654.75,653.48,1.588]
[1747815388960,3.68378074,654.57,653.48,1.588]
[1747815395565,0.26610794,654.56,653.48,1.588]
[1747815397367,3.68378074,654.57,653.48,1.588]
[1747815398567,0.2661344,654.56,653.48,1.588]
[1747815400371,3.68378074,654.57,653.48,1.588]
[1747815401469,0.26615068,654.56,653.48,1.588]
[1747815403366,1.527,654.55,653.48,1.588]
[1747815404172,0.26612422,654.54,653.48,1.588]
[1747815406271,1.527,654.55,653.48,1.588]
[1747815406867,0.26626064,654.54,653.48,1.588]
[1747815409375,1.527,654.55,653.48,1.588]
[1747815410569,1.527,654.55,653.49,1.596]
[1747815410777,0.26621176,654.54,653.49,1.596]
[1747815412276,1.527,654.55,653.49,1.596]
[1747815413577,0.26621074,654.54,653.49,1.596]
[1747815415285,1.527,654.55,653.49,1.596]
[1747815416586,0.26623926,654.54,653.49,1.596]
[1747815418287,1.527,654.55,653.49,1.596]
[1747815419485,0.26624333,654.54,653.49,1.596]
[1747815422486,0.26624333,654.54,653.5,1.486]
[1747815424396,1.527,654.55,653.5,1.486]
[1747815425697,0.26623009,654.54,653.5,1.486]
[1747815427299,3.68378074,655.18,653.5,1.486]
[1747815428495,0.26616595,655.17,653.5,1.486]
[1747815430101,1.526,655.16,653.5,1.486]
[1747815431099,0.97116872,654.66,653.5,1.486]
[1747815432799,0.97116872,654.66,653.5,3.237]
[1747815433301,3.68378074,654.62,653.5,3.237]
[1747815434501,0.26622093,654.61,653.5,3.237]
[1747815436306,3.68378074,654.62,653.5,3.237]
[1747815436809,0.26625759,654.61,653.5,3.237]
[1747815439409,3.68378074,654.62,653.5,3.237]
[1747815440010,0.26626574,654.61,653.5,3.237]
[1747815442307,0.97116872,654.6,653.5,3.237]
[1747815444412,0.26626574,654.61,653.5,3.237]
[1747815445510,3.68378074,654.62,653.5,3.237]
[1747815445714,0.26628,654.6,653.5,3.237]
[1747815448414,3.68378074,654.62,653.5,3.237]
[1747815448714,3.68378074,654.43,653.5,3.237]
[1747815449614,0.26629936,654.42,653.5,3.237]
[1747815451316,3.68378074,654.43,653.5,3.237]
[1747815451615,0.26629936,654.41,653.5,3.237]
[1747815454315,3.68378074,654.43,653.5,3.237]
[1747815455514,0.266334,654.42,653.5,3.237]
[1747815457321,3.68378074,654.43,653.5,3.237]
[1747815458623,0.26632585,654.42,653.5,3.237]
[1747815460327,3.68378074,654.43,653.5,3.237]
[1747815460627,0.266334,654.41,653.5,3.237]
[1747815462629,0.266334,654.41,653.5,1.751]
[1747815463130,3.68378074,654.3,653.5,1.751]
[1747815464225,3.68378074,654.3,653.5,0.79325324]
[1747815464630,0.26636356,654.29,653.5,0.79325324]
[1747815465130,0.26636356,654.29,653.5,0.17486013]
[1747815466026,0.26636356,654.29,653.08,1.175]
[1747815469339,3.68378074,654.3,653.08,1.175]
[1747815469638,0.26641862,654.28,653.08,1.175]
[1747815475343,3.68378074,654.3,653.08,1.175]
[1747815475640,3.68378074,654.09,653.08,1.175]
[1747815476640,0.26642372,654.08,653.08,1.175]
[1747815478344,3.68378074,654.09,653.08,1.175]
[1747815479644,0.26643596,654.08,653.08,1.175]
[1747815481346,3.68378074,654.09,653.08,1.175]
[1747815482548,0.266438,654.08,653.08,1.175]
[1747815484350,3.68378074,654.09,653.08,1.175]
[1747815484645,0.26645636,654.07,653.08,1.175]
[1747815489453,0.26645636,654.07,652.8,1.669]
[1747815490355,3.68378074,654.09,652.8,1.669]
[1747815490556,3.68378074,653.76,652.8,1.669]
[1747815491660,3.68378074,653.76,652.8,2.913]
[1747815494163,1.314,653.75,652.8,2.913]
[1747815501060,0.2665727,653.74,652.8,2.913]
[1747815502362,1.314,653.75,652.8,2.913]
[1747815502666,0.2665727,653.73,652.8,2.913]
[1747815505366,1.314,653.75,652.8,2.913]
[1747815505763,0.2665727,653.72,652.8,2.913]
[1747815508367,1.314,653.75,652.8,2.913]
[1747815509668,0.2665727,653.74,652.8,2.913]
[1747815511470,3.68378074,653.95,652.8,1.244]
[1747815511669,0.2665727,653.73,652.8,1.244]
[1747815511969,3.68378074,653.95,652.8,1.244]
[1747815512672,0.26658904,653.94,652.8,1.244]
[1747815517376,5.21278074,653.95,652.8,1.244]
[1747815518077,5.21278074,653.95,652.8,0.27563748]
[1747815518577,0.26666769,653.94,652.8,0.27563748]
[1747815518779,3.68378074,653.54,652.8,0.27563748]
[1747815520979,0.26668097,653.53,652.8,0.27563748]
[1747815523380,3.68378074,653.9,652.8,0.27563748]
[1747815523879,0.26663398,653.89,652.8,0.27563748]
[1747815524181,3.68378074,653.51,652.8,0.27563748]
[1747815526982,0.26667075,653.5,652.8,0.27563748]
[1747815529685,0.26667075,653.5,652.25,1.369]
[1747815532398,3.68378074,653.51,652.25,1.369]
[1747815533689,0.26667178,653.5,652.25,1.369]
[1747815535392,3.68378074,653.69,652.25,1.369]
[1747815536586,0.26665339,653.68,652.25,1.369]
[1747815538393,3.68378074,653.69,652.25,1.369]
[1747815539593,0.26662887,653.68,652.25,1.369]
[1747815540096,1.496,653.67,652.25,1.369]
[1747815542593,0.26663091,653.66,652.25,1.369]
[1747815544396,1.496,653.67,652.25,1.369]
[1747815545596,0.26664521,653.66,652.25,1.369]
[1747815548190,3.68378074,653.37,652.25,1.369]
[1747815553698,0.26665339,653.36,652.25,1.369]
[1747815555802,1.53,653.35,652.25,1.369]
[1747815557703,0.26667382,653.34,652.25,1.369]
[1747815559404,1.53,653.35,652.25,1.369]
[1747815560703,0.26668608,653.34,652.25,1.369]
[1747815560904,0.26668608,653.34,652.0,1.17]
[1747815561803,3.68378074,653.16,652.0,1.17]
[1747815563706,0.26675865,653.15,652.0,1.17]
[1747815564207,0.26675865,653.15,652.01,1.407]
[1747815571415,3.68378074,653.16,652.01,1.407]
[1747815572715,0.26677297,653.15,652.01,1.407]
[1747815574417,3.68378074,653.16,652.01,1.407]
[1747815575714,0.26672798,653.15,652.01,1.407]
[1747815577420,3.68378074,653.17,652.01,1.407]
[1747815578613,0.26671878,653.16,652.01,1.407]
[1747815579620,1.531,653.15,652.01,1.407]
[1747815589727,3.95050361,653.14,652.01,1.407]
[1747815592529,3.68378074,653.14,652.01,1.407]
[1747815593730,0.26674127,653.13,652.01,1.407]
[1747815595333,0.26674127,653.13,652.02,1.684]
[1747815595537,3.68378074,653.14,652.02,1.684]
[1747815596634,0.26674536,653.13,652.02,1.684]
[1747815598436,3.68378074,653.14,652.02,1.684]
[1747815598735,0.26674536,653.12,652.02,1.684]
[1747815601441,3.68378074,653.14,652.02,1.684]
[1747815602738,0.26674536,653.13,652.02,1.684]
[1747815607440,1.531,653.15,652.02,1.684]
[1747815607641,3.68378074,653.22,652.02,1.684]
[1747815607837,0.26676683,653.12,652.02,1.684]
[1747815608034,3.68378074,653.22,652.02,1.684]
[1747815608739,0.26675967,653.21,652.02,1.684]
[1747815611547,1.53,653.2,652.02,1.684]
[1747815616752,0.26676172,653.19,652.02,1.684]
[1747815618750,0.26676172,653.19,652.02,3.316]
[1747815619650,1.53,653.2,652.02,3.316]
[1747815619954,0.2667515,653.18,652.02,3.316]
[1747815622458,1.53,653.2,652.02,3.316]
[1747815623657,0.26676785,653.19,652.02,3.316]
[1747815625465,1.53,653.2,652.02,3.316]
[1747815626661,0.2667924,653.19,652.02,3.316]
[1747815631368,1.53,653.2,652.02,3.316]
[1747815632668,0.26679035,653.19,652.02,3.316]
[1747815633073,3.68378074,652.91,652.02,3.316]
[1747815635674,0.26683024,652.9,652.02,3.316]
[1747815636575,0.26683024,652.9,652.02,1.684]
[1747815637374,3.68378074,652.91,652.02,1.684]
[1747815638673,0.26686298,652.9,652.02,1.684]
[1747815640074,1.531,652.89,652.02,1.684]
[1747815644679,0.26684456,652.88,652.02,1.684]
[1747815646084,3.68378074,652.77,652.02,1.684]
[1747815647682,0.26685275,652.76,652.02,1.684]
[1747815652484,1.531,652.89,652.02,1.684]
[1747815653691,0.26682001,652.88,652.02,1.684]
[1747815655494,1.531,652.89,652.02,1.684]
[1747815656689,0.26684047,652.88,652.02,1.684]
[1747815661392,1.531,652.89,652.02,1.684]
[1747815662696,0.26682615,652.88,652.02,1.684]
[1747815664396,1.531,652.89,652.02,1.684]
[1747815665698,0.26684252,652.88,652.02,1.684]
[1747815665904,3.68378074,652.82,652.02,1.684]
[1747815668803,0.26683945,652.81,652.02,1.684]
[1747815670503,3.68378074,652.82,652.02,1.684]
[1747815671401,4.95778074,652.82,652.02,1.684]
[1747815671697,0.26683945,652.81,652.02,1.684]
[1747815673603,4.95778074,652.82,652.02,1.684]
[1747815674203,0.26683331,652.81,652.02,1.684]
[1747815686318,3.68378074,652.47,652.02,1.684]
[1747815686518,3.68378074,652.47,652.0,0.58416361]
[1747815687117,0.26689368,652.46,652.0,0.58416361]
[1747815688513,3.68378074,652.47,652.0,0.58416361]
[1747815689717,0.26688754,652.46,652.0,0.58416361]
[1747815691116,3.68378074,652.47,652.0,0.58416361]
[1747815694624,1.303,652.58,652.0,0.58416361]
[1747815695824,0.26685377,652.57,652.0,0.58416361]
[1747815697623,1.303,652.58,652.0,0.58416361]
[1747815698726,0.26685377,652.57,652.0,0.58416361]
[1747815700527,1.303,652.58,652.0,0.58416361]
[1747815737251,1.303,652.58,651.32,0.56983871]
[1747815737443,1.303,652.58,651.33,0.64626061]
[1747815737647,1.303,652.58,651.34,0.64624767]
[1747815737851,1.303,652.58,651.35,0.64624767]
[1747815738048,1.303,652.58,651.36,1.8506381]
[1747815738241,1.303,652.58,651.37,0.64624767]
[1747815738445,1.303,652.58,651.37,1.8506381]
[1747815738646,1.303,652.58,651.38,1.8506381]
[1747815738844,1.303,652.58,651.39,1.21608638]
[1747815739046,1.303,652.58,651.4,0.64624767]
[1747815739247,1.303,652.58,651.41,1.8506381]
[1747815739442,1.303,652.58,651.42,0.64624767]
[1747815739649,1.303,652.58,651.43,0.64624767]
[1747815739845,1.303,652.58,651.44,0.64624767]
[1747815740050,1.303,652.58,651.45,1.20439043]
[1747815740349,1.303,652.58,651.46,0.64624767]
[1747815740850,1.303,652.58,651.47,0.55063532]
[1747815742349,1.303,652.58,651.4,0.55063532]
[1747815742550,1.303,652.58,651.41,1.84926628]
[1747815742748,1.303,652.58,651.42,0.64636722]
[1747815742956,1.303,652.58,651.43,1.84926628]
[1747815743252,1.303,652.58,651.44,1.84926628]
[1747815743546,1.303,652.58,651.45,0.64636722]
[1747815743745,1.303,652.58,651.46,1.20289906]
[1747815743952,1.303,652.58,651.47,0.64636722]
[1747815745553,1.303,652.58,651.48,0.55063532]
[1747815746349,1.303,652.58,651.49,1.84993496]
[1747815746555,1.303,652.58,651.5,0.64660151]
[1747815747256,1.303,652.58,651.51,0.64673836]
[1747815747453,1.303,652.58,651.44,0.55063532]
[1747815747653,1.303,652.58,651.45,1.85049145]
[1747815747853,1.303,652.58,651.46,0.64686264]
[1747815748148,1.303,652.58,651.46,1.19749796]
[1747815748353,1.303,652.58,651.47,1.85049145]
[1747815748553,1.303,652.58,651.48,0.64686264]
[1747815748954,1.303,652.58,651.49,1.20362881]
[1747815749148,1.303,652.58,651.5,0.64686264]
[1747815749461,1.303,652.58,651.51,1.75426413]
[1747815749658,1.303,652.58,651.52,0.6470391]
[1747815749855,1.303,652.58,651.51,1.75426413]
[1747815750156,1.303,652.58,651.51,0.55063532]
[1747815750552,1.303,652.58,651.52,0.64704962]
[1747815750758,1.303,652.58,651.51,0.55063532]
[1747815750958,1.303,652.58,651.44,1.20428137]
[1747815750959,1.303,652.58,651.52,0.55063532]
[1747815752257,1.303,652.58,651.53,0.55063532]
[1747815753859,1.303,652.58,651.53,1.83863532]
[1747815755054,1.303,652.58,651.53,1.288]
[1747815786292,1.303,652.58,651.54,0.55233743]
[1747815786591,1.303,652.58,651.54,2.23833743]
[1747815787290,1.303,652.58,651.54,1.686]
[1747815788996,1.303,652.58,651.54,2.935]